bitfinex-derivatives/quotes_BNBF0:USTF0_20251219
["timestamp","ask_amount","ask_price","bid_price","bid_amount"]
[1766151080179,1.17242857,848.76,847.66,0.88029388]
[1766151080380,1.17242857,848.75,847.66,0.88029388]
[1766151080580,1.17242857,848.74,847.66,0.88029388]
[1766151080778,0.20505447,848.88,847.66,0.88029388]
[1766151080979,1.1724314,848.87,847.66,0.88029388]
[1766151081277,1.1724314,848.86,847.67,0.88029388]
[1766151081579,1.1724314,848.85,847.67,0.88029388]
[1766151081781,1.1724314,848.84,847.67,0.88029388]
[1766151081978,1.1724314,848.83,847.67,0.88029388]
[1766151082182,1.1724314,848.82,847.67,0.88029388]
[1766151082381,1.1724314,848.81,847.67,0.88029388]
[1766151082582,1.1724314,848.8,847.67,0.88029388]
[1766151082782,1.1724314,848.79,847.67,0.88029388]
[1766151083077,1.1724314,848.78,847.67,0.88029388]
[1766151083281,1.1724314,848.77,847.67,0.88029388]
[1766151083580,1.1724314,848.76,847.67,0.88029388]
[1766151083778,1.1724314,848.75,847.67,0.88029388]
[1766151083984,1.1724314,848.74,847.67,0.88029388]
[1766151084180,0.20505447,848.88,847.67,0.88029388]
[1766151084480,1.17265299,848.87,847.67,0.88029388]
[1766151084679,1.17265299,848.86,847.67,0.88029388]
[1766151084879,1.17265299,848.85,847.67,0.88029388]
[1766151085085,1.17265299,848.84,847.68,0.88029388]
[1766151085380,1.17265299,848.83,847.68,0.88029388]
[1766151085581,1.17265299,848.82,847.67,0.88029388]
[1766151085782,1.17265299,848.81,847.67,0.88029388]
[1766151085984,1.17265299,848.8,847.67,0.88029388]
[1766151086183,1.17265299,848.79,847.67,0.88029388]
[1766151086381,1.17265299,848.78,847.67,0.88029388]
[1766151086585,1.17265299,848.77,847.67,0.88029388]
[1766151086785,1.17265299,848.76,847.67,0.88029388]
[1766151086986,1.17265299,848.75,847.67,0.88029388]
[1766151087184,1.17265299,848.74,847.67,0.88029388]
[1766151087383,1.17265299,848.73,847.67,0.88029388]
[1766151087681,0.20505447,848.88,847.67,0.88029388]
[1766151087885,1.17290954,848.87,847.67,0.88029388]
[1766151088086,1.17290954,848.86,847.67,0.88029388]
[1766151088386,1.17290954,848.85,847.68,0.88029388]
[1766151088583,1.17290954,848.84,847.68,0.88029388]
[1766151088787,1.17290954,848.83,847.68,0.88029388]
[1766151088988,1.17290954,848.82,847.68,0.88029388]
[1766151089182,1.17290954,848.81,847.68,0.88029388]
[1766151089383,1.17290954,848.8,847.68,0.88029388]
[1766151089586,1.17290954,848.79,847.68,0.88029388]
[1766151089784,1.17290954,848.78,847.68,0.88029388]
[1766151090086,1.17290954,848.77,847.68,0.88029388]
[1766151090289,1.17290954,848.76,847.68,0.88029388]
[1766151090489,0.20505447,848.88,847.68,0.88029388]
[1766151090490,1.17290954,848.75,847.68,0.88029388]
[1766151090688,1.17290954,848.74,847.68,0.88029388]
[1766151090896,1.17290954,848.73,847.68,0.88029388]
[1766151091097,1.17290954,848.72,847.69,0.88029388]
[1766151091299,1.17290954,848.71,847.69,0.88029388]
[1766151091593,0.20505447,848.88,847.69,0.88029388]
[1766151091799,1.17340683,848.87,847.69,0.88029388]
[1766151091997,1.17340683,848.86,847.69,0.88029388]
[1766151092299,1.17340683,848.85,847.69,0.88029388]
[1766151092499,1.17340683,848.84,847.69,0.88029388]
[1766151092696,1.17340683,848.83,847.69,0.88029388]
[1766151092900,1.17340683,848.82,847.69,0.88029388]
[1766151093100,1.17340683,848.81,847.7,0.88029388]
[1766151093295,1.17340683,848.8,847.7,0.88029388]
[1766151093497,1.17340683,848.79,847.7,0.88029388]
[1766151093801,1.17340683,848.79,847.39,1.77020185]
[1766151093802,1.17340683,848.78,847.69,0.88029388]
[1766151094001,1.17340683,848.77,847.69,0.88029388]
[1766151094201,1.17340683,848.76,847.67,0.88029388]
[1766151094501,1.17340683,848.75,847.67,0.88029388]
[1766151094701,1.17340683,848.74,847.67,0.88029388]
[1766151094898,1.17340683,848.73,847.67,0.88029388]
[1766151095102,1.17340683,848.72,847.67,0.88029388]
[1766151095302,1.17340683,848.71,847.67,0.88029388]
[1766151095504,1.17340683,848.7,847.67,0.88029388]
[1766151095704,1.17340683,848.69,847.67,0.88029388]
[1766151095902,1.17340683,848.68,847.58,0.88029388]
[1766151096100,1.17340683,848.67,847.58,0.88029388]
[1766151096302,1.17340683,848.67,847.43,1.17494724]
[1766151096303,1.17340683,848.66,847.59,0.88029388]
[1766151096504,1.17340683,848.65,847.58,0.88029388]
[1766151096801,1.17340683,848.64,847.58,0.88029388]
[1766151097007,1.17340683,848.63,847.58,0.88029388]
[1766151097201,1.17340683,848.62,847.59,0.88029388]
[1766151097505,1.17340683,848.61,847.59,0.88029388]
[1766151097705,1.17340683,848.6,847.59,0.88029388]
[1766151097903,1.17340683,848.59,847.59,0.88029388]
[1766151098205,1.17340683,848.58,847.6,0.88029388]
[1766151098406,1.17340683,848.57,847.6,0.88029388]
[1766151098704,1.17340683,848.56,847.6,0.88029388]
[1766151098905,1.17340683,848.55,847.6,0.88029388]
[1766151099103,1.17340683,848.54,847.61,0.88029388]
[1766151099308,1.17340683,848.53,847.6,0.88029388]
[1766151099507,1.17469045,848.79,847.6,0.88029388]
[1766151099706,1.17491411,848.78,847.6,0.88029388]
[1766151100007,1.17491411,848.77,847.61,0.88029388]
[1766151100207,1.17491411,848.76,847.62,0.88029388]
[1766151100407,1.17469045,848.78,847.46,1.17494724]
[1766151100408,1.17491411,848.75,847.61,0.88029388]
[1766151100610,1.17491411,848.74,847.61,0.88029388]
[1766151100806,1.17491411,848.73,847.61,0.88029388]
[1766151101009,1.17491411,848.72,847.61,0.88029388]
[1766151101309,1.17491411,848.71,847.63,0.88029388]
[1766151101608,1.17491411,848.7,847.63,0.88029388]
[1766151101910,1.17469045,848.77,847.47,1.17494724]
[1766151101911,1.17491411,848.69,847.62,0.88029388]
[1766151102209,1.17491411,848.68,847.64,0.88029388]
[1766151102406,1.17491411,848.67,847.57,0.88029388]
[1766151102610,1.17491411,848.66,847.57,0.88029388]
[1766151102909,1.17491411,848.65,847.57,0.88029388]
[1766151103105,1.17491411,848.64,847.57,0.88029388]
[1766151103313,1.17491411,848.63,847.58,0.88029388]
[1766151103507,1.17491411,848.62,847.58,0.88029388]
[1766151103712,1.17491411,848.61,847.58,0.88029388]
[1766151103910,1.17491411,848.6,847.58,0.88029388]
[1766151104108,1.17491411,848.59,847.59,0.88029388]
[1766151104408,1.17491411,848.58,847.58,0.88029388]
[1766151104612,1.17491411,848.57,847.58,0.88029388]
[1766151104912,1.17491411,848.56,847.58,0.88029388]
[1766151105209,1.76219702,848.82,847.59,0.88029388]
[1766151105210,1.17491411,848.55,847.59,0.88029388]
[1766151105407,1.17491411,848.54,847.59,0.88029388]
[1766151105612,1.17491411,848.53,847.59,0.88029388]
[1766151105807,1.17491411,848.52,847.59,0.88029388]
[1766151106006,1.17491411,848.51,847.59,0.88029388]
[1766151106211,1.17491411,848.5,847.59,0.88029388]
[1766151106411,1.17491411,848.49,847.59,0.88029388]
[1766151106608,1.17491411,848.48,847.59,0.88029388]
[1766151106914,1.17491411,848.47,847.58,0.88029388]
[1766151107113,1.17469045,848.4,847.33,0.88029388]
[1766151107414,1.17491411,848.39,847.28,0.88029388]
[1766151108414,1.17491411,848.39,847.25,0.88029388]
[1766151108613,1.17491411,848.38,847.25,0.88029388]
[1766151108914,1.17491411,848.37,847.25,0.88029388]
[1766151109118,1.17491411,848.36,847.26,0.88029388]
[1766151109315,1.17491411,848.35,847.24,0.88029388]
[1766151109513,1.17491411,848.34,847.24,0.88029388]
[1766151109713,1.17491411,848.33,847.24,0.88029388]
[1766151109910,1.17491411,848.32,847.23,0.88029388]
[1766151110110,1.17491411,848.31,847.24,0.88029388]
[1766151110310,1.17491411,848.3,847.22,0.88029388]
[1766151110610,1.17491411,848.29,847.22,0.88029388]
[1766151110813,1.17491411,848.28,847.22,0.88029388]
[1766151111008,1.17491411,848.27,847.22,0.88029388]
[1766151111208,1.17491411,848.26,847.2,0.88029388]
[1766151111514,1.17491411,848.25,847.2,0.88029388]
[1766151111810,1.17491411,848.24,847.2,0.88029388]
[1766151112135,1.17491411,848.23,847.2,0.88029388]
[1766151112311,1.17469045,848.48,847.19,0.88029388]
[1766151112507,1.17496757,848.47,847.19,0.88029388]
[1766151112711,1.17496757,848.46,847.19,0.88029388]
[1766151112911,1.17496757,848.45,847.19,0.88029388]
[1766151113109,1.17496757,848.44,847.19,0.88029388]
[1766151113316,1.17496757,848.43,847.18,0.88029388]
[1766151113516,1.17496757,848.42,847.18,0.88029388]
[1766151113716,1.17496757,848.41,847.18,0.88029388]
[1766151114016,1.17496757,848.4,847.21,0.88029388]
[1766151114216,1.17496757,848.39,847.21,0.88029388]
[1766151114515,1.17496757,848.38,847.2,0.88029388]
[1766151114712,1.17496757,848.38,847.05,1.17494724]
[1766151114713,1.17496757,848.37,847.19,0.88029388]
[1766151114915,1.17496757,848.36,847.19,0.88029388]
[1766151115216,1.17496757,848.35,847.19,0.88029388]
[1766151115413,1.17496757,848.34,847.11,0.88029388]
[1766151115615,1.17496757,848.33,846.92,1.17494724]
[1766151115914,1.17496757,848.32,846.92,1.17494724]
[1766151116112,1.17496757,848.31,846.92,1.17494724]
[1766151116316,1.17496757,848.3,846.91,1.17494724]
[1766151116615,1.17496757,848.29,846.91,1.17494724]
[1766151116815,1.17496757,848.28,846.91,1.17494724]
[1766151117015,1.17496757,848.27,846.91,1.17494724]
[1766151117213,1.17496757,848.26,846.9,1.17494724]
[1766151117417,1.17496757,848.25,846.89,1.17494724]
[1766151117713,1.17496757,848.24,846.89,1.17494724]
[1766151117913,1.17469045,848.45,846.89,1.17494724]
[1766151118214,1.17343648,848.44,846.88,1.17494724]
[1766151118417,1.17343648,848.43,846.87,1.17494724]
[1766151118616,1.17469045,848.38,846.79,1.17494724]
[1766151118817,2.34812693,848.37,846.79,1.17494724]
[1766151119117,1.17343648,848.36,846.79,1.17494724]
[1766151119412,1.17343648,848.35,846.78,1.17494724]
[1766151119617,1.17343648,848.34,846.78,1.17494724]
[1766151119817,1.17343648,848.33,846.78,1.17494724]
[1766151120117,1.17343648,848.32,846.78,1.17494724]
[1766151120316,1.17343648,848.31,846.78,1.17494724]
[1766151120514,1.17343648,848.3,846.78,1.17494724]
[1766151120816,1.17343648,848.29,846.72,1.17494724]
[1766151121016,1.17343648,848.28,846.72,1.17494724]
[1766151121312,1.17343648,848.27,846.63,1.17494724]
[1766151121511,1.17343648,848.26,846.63,1.17494724]
[1766151121713,1.17343648,848.25,846.63,1.17494724]
[1766151122013,1.17343648,848.24,846.63,1.17494724]
[1766151122213,1.17343648,848.23,846.63,1.17494724]
[1766151122413,1.17343648,848.22,846.61,1.17494724]
[1766151122613,1.17343648,848.21,846.61,1.17494724]
[1766151122816,1.17343648,848.2,846.61,1.17494724]
[1766151123015,1.17343648,848.19,846.61,1.17494724]
[1766151123215,1.17343648,848.18,846.61,1.17494724]
[1766151123415,1.17343648,848.17,846.6,1.17494724]
[1766151123717,1.17343648,848.16,846.6,1.17494724]
[1766151123914,1.17343648,848.15,846.6,1.17494724]
[1766151124118,1.17343648,848.14,846.6,1.17494724]
[1766151124319,1.17343648,848.13,846.58,1.17494724]
[1766151124516,1.17343648,848.12,846.58,1.17494724]
[1766151124716,1.17343648,848.11,846.58,1.17494724]
[1766151124923,1.17469045,848.33,846.58,1.17494724]
[1766151125115,1.17099546,848.32,846.58,1.17494724]
[1766151125316,1.17099546,848.31,846.56,1.17494724]
[1766151125519,1.17099546,848.3,846.56,1.17494724]
[1766151125721,1.17099546,848.29,846.56,1.17494724]
[1766151125916,1.17099546,848.28,846.56,1.17494724]
[1766151126117,1.17469045,848.17,846.4,1.17494724]
[1766151126318,1.17099546,848.16,846.47,0.20535214]
[1766151126517,1.17099546,848.15,846.47,0.20535214]
[1766151126720,2.34568591,848.14,846.32,1.17494724]
[1766151126921,1.17469045,848.08,846.28,0.20539638]
[1766151127118,1.17469045,848.01,846.28,0.20539638]
[1766151127321,1.17099546,848.0,846.28,0.20539638]
[1766151127524,1.17099546,847.99,846.28,0.20539638]
[1766151127719,1.17099546,847.98,846.28,0.20539638]
[1766151127919,1.17099546,847.97,846.28,0.20539638]
[1766151128118,1.17099546,847.96,846.28,0.20539638]
[1766151128323,1.17099546,847.95,846.28,0.20539638]
[1766151128624,1.17099546,847.94,846.04,1.17494724]
[1766151128821,1.17469045,847.92,846.18,0.20543578]
[1766151129022,1.17099546,847.91,846.18,0.20543578]
[1766151129224,1.17099546,847.9,846.18,0.20543578]
[1766151129426,1.17099546,847.89,846.18,0.20543578]
[1766151129621,1.17099546,847.88,846.18,0.20543578]
[1766151129925,1.17469045,847.91,846.18,0.20543578]
[1766151129926,1.17099546,847.87,846.18,0.20543578]
[1766151130123,1.17469045,847.78,845.78,1.17494724]
[1766151130324,1.17099546,847.77,846.09,0.20546429]
[1766151130523,1.17099546,847.76,846.09,0.20546429]
[1766151130825,1.17099546,847.75,846.09,0.20546429]
[1766151131027,1.17099546,847.74,846.09,0.20546429]
[1766151131326,1.17099546,847.73,846.09,0.20546429]
[1766151131621,1.17099546,847.72,846.09,0.20546429]
[1766151131827,1.17099546,847.71,846.09,0.20546429]
[1766151132022,1.17099546,847.7,846.09,0.20546429]
[1766151132226,1.17099546,847.69,846.09,0.20546429]
[1766151132423,1.17099546,847.68,846.09,0.20546429]
[1766151132627,1.17469045,847.88,846.09,0.20546429]
[1766151132828,1.16478582,847.87,846.09,0.20546429]
[1766151133029,1.16478582,847.86,846.09,0.20546429]
[1766151133229,1.16478582,847.85,846.09,0.20546429]
[1766151133532,1.16478582,847.84,846.09,0.20546429]
[1766151133727,1.16478582,847.83,846.09,0.20546429]
[1766151133927,1.16478582,847.82,846.09,0.20546429]
[1766151134232,1.16478582,847.81,846.09,0.20546429]
[1766151134527,1.16478582,847.8,846.09,0.20546429]
[1766151134731,1.17469045,847.92,846.09,0.20546429]
[1766151134732,1.16478582,847.79,846.09,0.20546429]
[1766151134931,1.16478582,847.78,846.09,0.20546429]
[1766151135133,1.16478582,847.77,846.09,0.20546429]
[1766151135333,1.16478582,847.76,846.09,0.20546429]
[1766151135633,1.16478582,847.75,846.09,0.20546429]
[1766151135932,1.16478582,847.74,846.09,0.20546429]
[1766151136129,1.17469045,847.94,846.09,0.20546429]
[1766151136335,1.16204811,847.93,846.09,0.20546429]
[1766151136528,1.16204811,847.92,846.09,0.20546429]
[1766151136733,1.16204811,847.91,846.09,0.20546429]
[1766151136930,1.16204811,847.9,846.09,0.20546429]
[1766151137135,1.16204811,847.89,846.09,0.20546429]
[1766151137328,1.16204811,847.88,846.09,0.20546429]
[1766151137533,1.16204811,847.87,846.09,0.20546429]
[1766151137830,1.16204811,847.86,846.09,0.20546429]
[1766151138031,1.16204811,847.85,846.09,0.20546429]
[1766151138233,1.16204811,847.84,846.09,0.20546429]
[1766151138427,1.17469045,848.04,846.09,0.20546429]
[1766151138632,1.16134032,848.03,846.09,0.20546429]
[1766151138830,1.16134032,848.02,846.09,0.20546429]
[1766151139030,1.16134032,848.01,846.09,0.20546429]
[1766151139235,1.16134032,848.0,846.09,0.20546429]
[1766151139433,1.16134032,847.99,846.09,0.20546429]
[1766151139629,1.16134032,847.98,846.09,0.20546429]
[1766151139833,1.16134032,847.97,846.09,0.20546429]
[1766151140029,1.16134032,847.96,846.09,0.20546429]
[1766151140231,1.16134032,847.95,846.09,0.20546429]
[1766151140532,1.16134032,847.94,846.09,0.20546429]
[1766151140737,1.16134032,847.93,846.09,0.20546429]
[1766151140937,1.16134032,847.92,846.09,0.20546429]
[1766151141237,1.16134032,847.91,846.09,0.20546429]
[1766151141434,1.16134032,847.9,846.09,0.20546429]
[1766151141639,1.16134032,847.89,846.09,0.20546429]
[1766151141939,1.17469045,848.11,846.09,0.20546429]
[1766151142135,1.15951961,848.1,846.09,0.20546429]
[1766151142334,1.15951961,848.09,846.09,0.20546429]
[1766151142636,1.15951961,848.08,846.09,0.20546429]
[1766151142834,1.15951961,848.07,846.09,0.20546429]
[1766151143039,1.15951961,848.06,846.09,0.20546429]
[1766151143233,1.15951961,848.05,846.09,0.20546429]
[1766151143434,1.15951961,848.04,846.09,0.20546429]
[1766151143635,1.15951961,848.03,846.09,0.20546429]
[1766151143836,1.15951961,848.02,846.09,0.20546429]
[1766151144038,1.15951961,848.01,846.09,0.20546429]
[1766151144239,1.15951961,848.0,846.09,0.20546429]
[1766151144436,1.15951961,847.99,846.09,0.20546429]
[1766151144635,1.15951961,847.98,846.09,0.20546429]
[1766151144839,1.15951961,847.97,846.09,0.20546429]
[1766151145038,1.17469045,848.16,846.09,0.20546429]
[1766151145241,1.15926115,848.15,846.09,0.20546429]
[1766151145537,1.15926115,848.14,846.09,0.20546429]
[1766151145838,1.15926115,848.13,846.09,0.20546429]
[1766151146041,1.15926115,848.12,846.09,0.20546429]
[1766151146240,1.15926115,848.11,846.09,0.20546429]
[1766151146441,1.15926115,848.1,846.09,0.20546429]
[1766151146640,1.15926115,848.09,846.09,0.20546429]
[1766151146937,1.15926115,848.08,846.09,0.20546429]
[1766151147142,1.15926115,848.07,846.09,0.20546429]
[1766151147343,1.15926115,848.06,846.09,0.20546429]
[1766151147542,1.17469045,848.11,846.09,0.20546429]
[1766151147842,1.1595034,848.1,846.09,0.20546429]
[1766151148137,1.1595034,848.09,846.09,0.20546429]
[1766151148342,1.1595034,848.08,846.09,0.20546429]
[1766151148539,1.1595034,848.07,846.09,0.20546429]
[1766151148744,1.1595034,848.06,846.09,0.20546429]
[1766151149040,1.1595034,848.05,846.09,0.20546429]
[1766151149243,1.1595034,848.04,846.09,0.20546429]
[1766151149441,1.17469045,848.1,846.09,0.20546429]
[1766151149442,1.1595034,848.03,846.09,0.20546429]
[1766151149640,1.1595034,848.02,846.09,0.20546429]
[1766151149841,1.1595034,848.01,846.09,0.20546429]
[1766151150041,1.1595034,848.0,846.09,0.20546429]
[1766151150341,1.1595034,847.99,846.09,0.20546429]
[1766151150539,1.1595034,847.98,846.09,0.20546429]
[1766151150743,1.1595034,847.97,846.09,0.20546429]
[1766151150945,1.1595034,847.96,846.09,0.20546429]
[1766151151140,1.1595034,847.95,846.09,0.20546429]
[1766151151343,1.1595034,847.94,846.09,0.20546429]
[1766151151540,1.1595034,847.93,846.09,0.20546429]
[1766151151840,1.1595034,847.92,846.09,0.20546429]
[1766151152041,1.1595034,847.91,846.09,0.20546429]
[1766151152243,1.1595034,847.9,846.09,0.20546429]
[1766151152447,1.1595034,847.89,846.09,0.20546429]
[1766151152744,1.17469045,848.08,846.09,0.20546429]
[1766151152946,1.1597628,848.07,846.09,0.20546429]
[1766151153149,1.1597628,848.06,846.09,0.20546429]
[1766151153349,1.1597628,848.05,846.09,0.20546429]
[1766151153547,1.1597628,848.04,846.09,0.20546429]
[1766151153846,1.17469045,848.02,846.09,0.20546429]
[1766151154051,2.33445325,848.01,846.09,0.20546429]
[1766151154347,1.1597628,848.0,846.09,0.20546429]
[1766151154850,1.17469045,847.97,846.09,0.20546429]
[1766151155046,1.1597628,847.96,846.09,0.20546429]
[1766151155251,1.17469045,847.89,845.51,1.17494724]
[1766151155551,1.17469045,847.79,845.93,0.20549947]
[1766151155753,1.1597628,847.78,845.93,0.20549947]
[1766151156051,1.17469045,847.72,845.93,0.20549947]
[1766151156246,1.1597628,847.71,845.93,0.20549947]
[1766151157252,2.33445325,847.71,845.93,0.20549947]
[1766151157453,1.1597628,847.7,845.93,0.20549947]
[1766151157653,1.1597628,847.7,845.32,1.17494724]
[1766151157849,1.1597628,847.7,845.85,0.20553892]
[1766151158351,1.17469045,847.66,845.85,0.20553892]
[1766151158550,1.1597628,847.65,845.85,0.20553892]
[1766151159255,2.33445325,847.65,845.85,0.20553892]
[1766151159552,1.1597628,847.64,845.85,0.20553892]
[1766151159854,1.17469045,847.62,845.24,1.17494724]
[1766151160150,2.33445325,847.61,845.72,0.20556199]
[1766151160354,1.17469045,847.59,845.72,0.20556199]
[1766151160551,1.1597628,847.58,845.72,0.20556199]
[1766151160751,1.1597628,847.57,845.72,0.20556199]
[1766151160951,1.1597628,847.56,845.72,0.20556199]
[1766151161153,1.1597628,847.55,845.72,0.20556199]
[1766151161354,1.1597628,847.54,845.72,0.20556199]
[1766151161554,1.1597628,847.53,845.72,0.20556199]
[1766151161755,1.1597628,847.52,845.72,0.20556199]
[1766151161954,1.1597628,847.51,845.72,0.20556199]
[1766151162153,1.1597628,847.5,845.72,0.20556199]
[1766151162352,1.1597628,847.49,845.72,0.20556199]
[1766151162554,1.1597628,847.48,845.72,0.20556199]
[1766151162754,1.1597628,847.47,845.72,0.20556199]
[1766151163054,1.1597628,847.46,845.72,0.20556199]
[1766151163255,1.1597628,847.45,845.72,0.20556199]
[1766151163554,1.1597628,847.44,845.72,0.20556199]
[1766151163750,1.1597628,847.43,845.72,0.20556199]
[1766151163952,1.1597628,847.42,845.72,0.20556199]
[1766151164256,1.1597628,847.41,845.72,0.20556199]
[1766151164455,1.1597628,847.4,845.72,0.20556199]
[1766151164756,1.1597628,847.39,845.72,0.20556199]
[1766151164957,1.1597628,847.38,845.72,0.20556199]
[1766151165155,1.1597628,847.37,845.72,0.20556199]
[1766151165358,1.1597628,847.36,845.72,0.20556199]
[1766151165654,1.1597628,847.35,845.72,0.20556199]
[1766151165858,1.1597628,847.34,845.17,1.17494724]
[1766151166059,1.1597628,847.33,845.62,0.20559417]
[1766151166258,1.1597628,847.32,845.62,0.20559417]
[1766151166457,2.33445325,847.31,845.04,1.17494724]
[1766151166656,1.1597628,847.3,845.52,0.20561178]
[1766151167360,1.16162142,847.29,845.52,0.20561178]
[1766151167560,1.16162142,847.28,845.52,0.20561178]
[1766151167856,1.16162142,847.27,845.52,0.20561178]
[1766151168062,1.16162142,847.26,845.52,0.20561178]
[1766151168257,1.16162142,847.25,845.52,0.20561178]
[1766151168458,1.16162142,847.24,845.52,0.20561178]
[1766151168760,1.16162142,847.23,845.52,0.20561178]
[1766151168955,1.17469045,847.31,845.02,1.17494724]
[1766151168956,1.16162142,847.22,845.02,1.17494724]
[1766151169158,2.93699504,848.07,845.33,0.20564945]
[1766151169159,1.17469045,847.19,845.33,0.20564945]
[1766151169357,2.33631187,847.18,845.33,0.20564945]
[1766151169556,1.16162142,847.17,845.33,0.20564945]
[1766151169864,1.16162142,847.16,845.33,0.20564945]
[1766151170160,2.93699504,847.96,845.33,0.20564945]
[1766151170161,1.17469045,847.13,845.33,0.20564945]
[1766151170363,1.16162142,847.12,845.33,0.20564945]
[1766151170657,1.16162142,847.11,845.33,0.20564945]
[1766151170858,1.16162142,847.1,845.33,0.20564945]
[1766151171062,1.17469045,847.22,845.33,0.20564945]
[1766151171063,1.16162142,847.09,845.33,0.20564945]
[1766151171263,1.16162142,847.08,845.33,0.20564945]
[1766151171463,1.16162142,847.07,845.33,0.20564945]
[1766151171763,1.17469045,847.22,845.33,0.20564945]
[1766151171764,1.16162142,847.06,845.33,0.20564945]
[1766151172063,1.16162142,847.05,845.33,0.20564945]
[1766151172362,1.16162142,847.04,845.33,0.20564945]
[1766151172562,1.16162142,847.03,845.33,0.20564945]
[1766151172763,1.17469045,847.22,845.33,0.20564945]
[1766151172962,1.16260906,847.21,845.33,0.20564945]
[1766151173262,1.16260906,847.2,845.33,0.20564945]
[1766151173462,1.16260906,847.19,845.33,0.20564945]
[1766151173658,1.16260906,847.18,845.33,0.20564945]
[1766151173963,1.16260906,847.17,845.33,0.20564945]
[1766151174160,1.16260906,847.16,845.33,0.20564945]
[1766151174459,1.16260906,847.15,845.33,0.20564945]
[1766151174658,1.16260906,847.14,845.33,0.20564945]
[1766151174863,1.16260906,847.13,845.33,0.20564945]
[1766151175160,1.16260906,847.12,845.33,0.20564945]
[1766151175358,1.16260906,847.11,845.33,0.20564945]
[1766151175666,1.16260906,847.1,845.33,0.20564945]
[1766151175866,1.16260906,847.09,845.33,0.20564945]
[1766151176066,1.17469045,847.36,845.33,0.20564945]
[1766151176265,1.16382758,847.35,845.33,0.20564945]
[1766151176465,1.16382758,847.34,845.33,0.20564945]
[1766151176665,1.16382758,847.33,845.33,0.20564945]
[1766151176865,1.16382758,847.32,845.33,0.20564945]
[1766151177065,1.16382758,847.31,845.33,0.20564945]
[1766151177363,1.16382758,847.3,845.33,0.20564945]
[1766151177566,1.16382758,847.29,845.33,1.07915797]
[1766151177761,1.17469045,847.5,845.43,0.87350852]
[1766151177962,1.16456562,847.49,845.43,0.87350852]
[1766151178165,1.16456562,847.48,845.45,0.87350852]
[1766151178365,1.16456562,847.47,845.48,0.87350852]
[1766151178566,1.16456562,847.46,845.48,0.87350852]
[1766151178761,1.16456562,847.45,845.51,0.87350852]
[1766151178965,1.16456562,847.44,845.55,0.87350852]
[1766151179162,1.16456562,847.43,845.55,0.87350852]
[1766151179466,1.16456562,847.42,845.58,0.87350852]
[1766151179665,1.16456562,847.41,845.58,0.87350852]
[1766151179866,1.16456562,847.4,845.6,0.87350852]
[1766151180069,1.17469045,847.62,845.63,0.87350852]
[1766151180261,1.16607638,847.61,845.63,0.87350852]
[1766151180462,1.16607638,847.6,845.63,0.87350852]
[1766151180661,1.16607638,847.59,845.63,0.87350852]
[1766151180866,1.16607638,847.58,845.63,0.87350852]
[1766151181065,1.16607638,847.57,845.63,0.87350852]
[1766151181267,1.16607638,847.56,845.65,0.87350852]
[1766151181467,1.16607638,847.55,845.65,0.87350852]
[1766151181667,1.16607638,847.54,845.65,0.87350852]
[1766151181868,1.16607638,847.53,845.66,0.87350852]
[1766151182068,1.16607638,847.52,845.66,0.87350852]
[1766151182269,1.16607638,847.51,845.68,0.87350852]
[1766151182469,1.16607638,847.5,845.68,0.87350852]
[1766151182666,1.16607638,847.49,845.68,0.87350852]
[1766151182870,1.16607638,847.48,845.68,0.87350852]
[1766151183165,1.16607638,847.47,845.68,0.87350852]
[1766151183470,1.16607638,847.46,845.7,0.87350852]
[1766151183665,1.17469045,847.57,845.7,0.87350852]
[1766151183666,1.16607638,847.45,845.7,0.87350852]
[1766151183970,1.16607638,847.44,845.7,0.87350852]
[1766151184270,1.16607638,847.43,845.71,0.87350852]
[1766151184466,0.01009204,848.31,845.73,0.87350852]
[1766151184467,1.16607638,847.42,845.73,0.87350852]
[1766151184669,1.16607638,847.41,845.73,0.87350852]
[1766151184968,1.16607638,847.4,845.73,0.87350852]
[1766151185165,1.16607638,847.39,845.73,0.87350852]
[1766151185471,1.16607638,847.38,845.76,0.87350852]
[1766151185767,1.16607638,847.37,845.76,0.87350852]
[1766151185969,1.16607638,847.36,845.76,0.87350852]
[1766151186168,1.16607638,847.35,845.76,0.87350852]
[1766151186466,1.16607638,847.34,845.78,0.87350852]
[1766151186666,1.17469045,847.52,845.78,0.87350852]
[1766151186667,1.16607638,847.33,845.78,0.87350852]
[1766151186970,1.16607638,847.32,845.78,0.87350852]
[1766151187171,1.16607638,847.31,845.78,0.87350852]
[1766151187471,1.16607638,847.3,845.79,0.87350852]
[1766151187673,1.17469045,847.51,845.79,0.87350852]
[1766151187867,1.16974348,847.5,845.79,0.87350852]
[1766151188168,1.16974348,847.49,845.79,0.87350852]
[1766151188466,1.16974348,847.48,845.8,0.87350852]
[1766151188671,1.16974348,847.47,845.8,0.87350852]
[1766151188867,1.16974348,847.46,845.8,0.87350852]
[1766151189071,1.16974348,847.45,845.8,0.87350852]
[1766151189267,1.16974348,847.44,845.81,0.87350852]
[1766151189470,1.16974348,847.43,845.81,0.87350852]
[1766151189671,1.16974348,847.42,845.81,0.87350852]
[1766151189871,1.16974348,847.41,845.81,0.87350852]
[1766151190071,1.16974348,847.4,845.81,0.87350852]
[1766151190266,1.16974348,847.39,845.81,0.87350852]
[1766151190467,1.16974348,847.38,845.81,0.87350852]
[1766151190667,1.16974348,847.37,845.81,0.87350852]